fUSD/lending_fUSD_20250320
["ID","MTS","AMOUNT","RATE_DAILY","PERIOD"]
[356418473,1742429468690,-500.0,0.00027983,2]
[356418474,1742429468699,-500.0,0.00027983,2]
[356418475,1742429468708,-500.0,0.00027983,2]
[356418476,1742429468718,-500.0,0.00027983,2]
[356418477,1742429468727,-936.25,0.00027983,2]
[356418478,1742429468735,-191.21962801,0.00027983,2]
[356418479,1742429468744,-500.0,0.00027983,2]
[356418480,1742429468754,-500.0,0.00027983,2]
[356418481,1742429468763,-679.48,0.00027983,2]
[356418482,1742429468773,-579.48,0.00027983,2]
[356418483,1742429468782,-500.0,0.00027983,2]
[356418484,1742429468791,-500.0,0.00027983,2]
[356418485,1742429468800,-500.0,0.00027983,2]
[356418486,1742429468809,-500.0,0.00027983,2]
[356418487,1742429468818,-613.24,0.00027983,2]
[356418488,1742429468828,-500.0,0.00027983,2]
[356418489,1742429468837,-500.0,0.00027983,2]
[356418490,1742429468846,-500.0,0.00027983,2]
[356418491,1742429468855,-868.8,0.00027983,2]
[356418492,1742429468864,-500.0,0.00027983,2]
[356418493,1742429468875,-500.0,0.00027983,2]
[356418494,1742429468884,-1176.38,0.00027983,2]
[356418495,1742429468894,-785.4,0.00027983,2]
[356418496,1742429468903,-606.13,0.00027983,2]
[356418497,1742429468912,-536.86,0.00027983,2]
[356418498,1742429468925,-821.33,0.00027983,2]
[356418499,1742429468935,-500.0,0.00027983,2]
[356418500,1742429468944,-739.48,0.00027983,2]
[356418501,1742429468953,-555.6,0.00027983,2]
[356418502,1742429468964,-500.0,0.00027983,2]
[356418503,1742429468973,-546.35,0.00027983,2]
[356418504,1742429468982,-500.0,0.00027983,2]
[356418505,1742429468991,-697.24,0.00027983,2]
[356418506,1742429469000,-500.0,0.00027983,2]
[356418507,1742429469009,-722.61,0.00027983,2]
[356418508,1742429469018,-500.0,0.00027983,2]
[356418509,1742429469027,-500.0,0.00027983,2]
[356418510,1742429469036,-500.0,0.00027983,2]
[356418511,1742429469044,-500.0,0.00027983,2]
[356418512,1742429469053,-500.0,0.00027983,2]
[356418513,1742429469062,-964.77,0.00027983,2]
[356418514,1742429469070,-500.0,0.00027983,2]
[356418515,1742429469079,-3586.23,0.00027983,2]
[356418516,1742429469088,-736.12,0.00027983,2]
[356418517,1742429469097,-1124.21,0.00027983,2]
[356418518,1742429469107,-1097.43,0.00027983,2]
[356418519,1742429469122,-754.87,0.00027983,2]
[356418520,1742429469131,-1474.64,0.00027983,2]
[356418521,1742429469139,-500.0,0.00027983,2]
[356418522,1742429469148,-500.0,0.00027983,2]
[356418523,1742429469157,-1280.33,0.00027983,2]
[356418524,1742429469166,-500.0,0.00027983,2]
[356418525,1742429469174,-862.32,0.00027983,2]
[356418526,1742429469183,-500.0,0.00027983,2]
[356418527,1742429469193,-783.16,0.00027983,2]
[356418528,1742429469202,-752.13,0.00027983,2]
[356418529,1742429469213,-560.09,0.00027983,2]
[356418530,1742429469223,-1602.83,0.00027983,2]
[356418531,1742429469231,-500.0,0.00027983,2]
[356418532,1742429469241,-613.42,0.00027983,2]
[356418533,1742429469251,-1019.87,0.00027983,2]
[356418534,1742429469260,-710.63,0.00027983,2]
[356418535,1742429469269,-721.01,0.00027983,2]
[356418536,1742429469279,-500.0,0.00027983,2]
[356418537,1742429469288,-989.3,0.00027983,2]
[356418538,1742429469298,-500.0,0.00027983,2]
[356418539,1742429469307,-747.45,0.00027983,2]
[356418540,1742429469317,-500.0,0.00027983,2]
[356418541,1742429469327,-500.0,0.00027983,2]
[356418542,1742429469336,-500.0,0.00027983,2]
[356418543,1742429469346,-465.72569077,0.00027983,2]
[356418544,1742429469355,-613.99,0.00027983,2]
[356418545,1742429469365,-500.0,0.00027983,2]
[356418546,1742429469377,-698.32,0.00027983,2]
[356418547,1742429469387,-694.45,0.00027983,2]
[356418548,1742429469397,-500.0,0.00027983,2]
[356418549,1742429469406,-412.13876442,0.00027983,2]
[356418550,1742429469417,-500.0,0.00027983,2]
[356418551,1742429469426,-500.0,0.00027983,2]
[356418552,1742429469435,-500.0,0.00027983,2]
[356418553,1742429469445,-500.0,0.00027983,2]
[356418554,1742429469454,-511.88700656,0.00027983,2]
[356418555,1742429469464,-500.0,0.00027983,2]
[356418556,1742429469473,-1054.21,0.00027983,2]
[356418557,1742429469483,-500.0,0.00027983,2]
[356418558,1742429469492,-500.0,0.00027983,2]
[356418559,1742429469502,-632.64,0.00027983,2]
[356418560,1742429469512,-1059.54,0.00027983,2]
[356418561,1742429469521,-500.0,0.00027983,2]
[356418562,1742429469530,-606.83,0.00027983,2]
[356418563,1742429469539,-500.0,0.00027983,2]
[356418564,1742429469549,-726.3,0.00027983,2]
[356418565,1742429469558,-856.71,0.00027983,2]
[356418566,1742429469567,-500.0,0.00027983,2]
[356418567,1742429469576,-500.0,0.00027983,2]
[356418568,1742429469587,-585.41,0.00027983,2]
[356418569,1742429469597,-665.41,0.00027983,2]
[356418570,1742429469606,-500.0,0.00027983,2]
[356418571,1742429469616,-500.0,0.00027983,2]
[356418572,1742429469626,-852.57,0.00027983,2]
[356418573,1742429469636,-877.66,0.00027983,2]
[356418574,1742429469646,-1145.44,0.00027983,2]
[356418575,1742429469655,-500.0,0.00027983,2]
[356418576,1742429469664,-500.0,0.00027983,2]
[356418577,1742429469674,-546.67,0.00027983,2]
[356418578,1742429469684,-500.0,0.00027983,2]
[356418579,1742429469693,-527.46,0.00027983,2]
[356418580,1742429469703,-601.7,0.00027983,2]
[356418581,1742429469713,-642.55,0.00027983,2]
[356418582,1742429469723,-1444.41,0.00027983,2]
[356418583,1742429469732,-594.29,0.00027983,2]
[356418584,1742429469741,-500.0,0.00027983,2]
[356418585,1742429469751,-853.47,0.00027983,2]
[356418586,1742429469761,-561.98,0.00027983,2]
[356418587,1742429469770,-812.3,0.00027983,2]
[356418588,1742429469778,-728.7,0.00027983,2]
[356418589,1742429469786,-511.43,0.00027983,2]
[356418590,1742429469794,-718.36,0.00027983,2]
[356418591,1742429469803,-500.0,0.00027983,2]
[356418592,1742429469812,-500.0,0.00027983,2]
[356418593,1742429469822,-500.0,0.00027983,2]
[356418594,1742429469833,-500.0,0.00027983,2]
[356418595,1742429469843,-500.0,0.00027983,2]
[356418596,1742429469853,-633.27,0.00027983,2]
[356418597,1742429469863,-504.06,0.00027983,2]
[356418598,1742429469872,-1076.81,0.00027983,2]
[356418599,1742429469882,-531.66,0.00027983,2]
[356418600,1742429469891,-500.0,0.00027983,2]
[356418601,1742429469900,-920.66,0.00027983,2]
[356418602,1742429469909,-500.0,0.00027983,2]
[356418603,1742429469921,-500.0,0.00027983,2]
[356418604,1742429469931,-500.0,0.00027983,2]
[356418605,1742429469940,-500.0,0.00027983,2]
[356418606,1742429469950,-511.28,0.00027983,2]
[356418607,1742429469959,-731.57,0.00027983,2]
[356418608,1742429469971,-500.0,0.00027983,2]
[356418609,1742429469981,-500.0,0.00027983,2]
[356418610,1742429469991,-514.3,0.00027983,2]
[356418611,1742429470004,-786.12,0.00027983,2]
[356418612,1742429470015,-555.8,0.00027983,2]
[356418613,1742429470025,-500.0,0.00027983,2]
[356418614,1742429470035,-500.0,0.00027983,2]
[356418615,1742429470046,-916.67,0.00027983,2]
[356418616,1742429470056,-500.0,0.00027983,2]
[356418617,1742429470066,-606.34,0.00027983,2]
[356418618,1742429470076,-1423.16,0.00027983,2]
[356418619,1742429470086,-514.51,0.00027983,2]
[356418620,1742429470095,-638.18,0.00027983,2]
[356418621,1742429470104,-500.0,0.00027983,2]
[356418622,1742429470114,-527.4,0.00027983,2]
[356418623,1742429470124,-771.71,0.00027983,2]
[356418624,1742429470134,-1968.02,0.00027983,2]
[356418625,1742429470143,-890.3,0.00027983,2]
[356418626,1742429470152,-972.67,0.00027983,2]
[356418627,1742429470162,-1255.95,0.00027983,2]
[356418628,1742429470171,-500.0,0.00027983,2]
[356418629,1742429470181,-747.03,0.00027983,2]
[356418630,1742429470191,-500.0,0.00027983,2]
[356418631,1742429470199,-500.0,0.00027983,2]
[356418632,1742429470209,-1355.2,0.00027983,2]
[356418633,1742429470219,-565.73,0.00027983,2]
[356418634,1742429470228,-514.95,0.00027983,2]
[356418635,1742429470237,-1417.74,0.00027983,2]
[356418636,1742429470247,-343.11738035,0.00027983,2]
[356418637,1742429470256,-1067.09,0.00027983,2]
[356418638,1742429470265,-1385.47,0.00027983,2]
[356418639,1742429470274,-1032.51,0.00027983,2]
[356418640,1742429470284,-1664.63,0.00027983,2]
[356418641,1742429470293,-636.34,0.00027983,2]
[356418642,1742429470302,-1005.05,0.00027983,2]
[356418643,1742429470311,-500.0,0.00027983,2]
[356418644,1742429470321,-1006.2503245,0.00027984,2]
[356418645,1742429470330,-1592.6772529,0.00027984,2]
[356418646,1742429470339,-815.96699464,0.00027992,2]
[356418647,1742429470349,-500.0,0.00027995,2]
[356418648,1742429470359,-500.0,0.00027995,2]
[356418649,1742429470369,-528.51,0.00027996,2]
[356418650,1742429470378,-500.0,0.00027996,2]
[356418651,1742429470388,-500.0,0.00027996,2]
[356418652,1742429470396,-500.0,0.00027996,2]
[356418653,1742429470405,-500.0,0.00027996,2]
[356418654,1742429470413,-500.0,0.00027996,2]
[356418655,1742429470423,-500.0,0.00027996,2]
[356418656,1742429470432,-504.31,0.00027996,2]
[356418657,1742429470442,-500.17,0.00027996,2]
[356418658,1742429470451,-510.19,0.00027996,2]
[356418659,1742429470460,-500.0,0.00027996,2]
[356418660,1742429470470,-500.0,0.00027996,2]
[356418661,1742429470479,-500.0,0.00027996,2]
[356418662,1742429470488,-500.0,0.00027996,2]
[356418663,1742429470498,-705.65,0.00027996,2]
[356418664,1742429470507,-500.0,0.00027996,2]
[356418665,1742429470517,-500.0,0.00027996,2]
[356418666,1742429470527,-500.0,0.00027996,2]
[356418667,1742429470536,-500.0,0.00027996,2]
[356418668,1742429470546,-671.1,0.00027996,2]
[356418669,1742429470555,-500.0,0.00027996,2]
[356418670,1742429470564,-611.3,0.00027996,2]
[356418671,1742429470574,-500.0,0.00027996,2]
[356418672,1742429470583,-500.0,0.00027996,2]
[356418673,1742429470593,-718.58,0.00027996,2]
[356418674,1742429470602,-830.24,0.00027996,2]
[356418675,1742429470612,-967.94,0.00027996,2]
[356418676,1742429470624,-500.0,0.00027996,2]
[356418677,1742429470634,-1438.85,0.00027996,2]
[356418678,1742429470644,-1003.48,0.00027996,2]
[356418679,1742429470654,-540.65894883,0.00027996,2]
[356418680,1742429470665,-500.0,0.00027996,2]
[356418681,1742429470675,-704.74,0.00027996,2]
[356418682,1742429470684,-500.0,0.00027996,2]
[356418683,1742429470694,-500.0,0.00027996,2]
[356418684,1742429470704,-500.0,0.00027996,2]
[356418685,1742429470713,-593.26,0.00027996,2]
[356418686,1742429470724,-654.32,0.00027996,2]
[356418687,1742429470734,-1391.13,0.00027996,2]
[356418688,1742429470744,-500.0,0.00027996,2]
[356418689,1742429470753,-622.93904997,0.00027996,2]
[356418690,1742429470764,-716.36,0.00027996,2]
[356418691,1742429470775,-595.75,0.00027996,2]
[356418692,1742429470785,-1454.99,0.00027996,2]
[356418693,1742429470795,-804.27,0.00027996,2]
[356418694,1742429470804,-675.21,0.00027996,2]
[356418695,1742429470813,-500.0,0.00027996,2]
[356418696,1742429470823,-515.44,0.00027996,2]
[356418697,1742429470832,-500.0,0.00027996,2]
[356418698,1742429470842,-500.0,0.00027996,2]
[356418699,1742429470851,-634.85,0.00027996,2]
[356418700,1742429470861,-500.0,0.00027996,2]
[356418701,1742429470872,-1552.13,0.00027996,2]
[356418702,1742429470882,-500.0,0.00027996,2]
[356418703,1742429470891,-500.0,0.00027996,2]
[356418704,1742429470902,-500.0,0.00027996,2]
[356418705,1742429470912,-500.0,0.00027996,2]
[356418706,1742429470925,-1023.44,0.00027996,2]
[356418707,1742429470935,-500.0,0.00027996,2]
[356418708,1742429470944,-1363.03,0.00027996,2]
[356418709,1742429470954,-759.42,0.00027996,2]
[356418710,1742429470964,-200.0,0.00027996,2]
[356418711,1742429470974,-500.0,0.00027996,2]
[356418712,1742429470983,-500.0,0.00027996,2]
[356418713,1742429470994,-500.0,0.00027996,2]
[356418714,1742429471004,-585.52,0.00027996,2]
[356418715,1742429471013,-577.74,0.00027996,2]
[356418716,1742429471023,-960.11,0.00027996,2]
[356418717,1742429471031,-500.0,0.00027996,2]
[356418718,1742429471040,-500.0,0.00027996,2]
[356418719,1742429471049,-343.60296614,0.00027996,2]
[356418720,1742429471058,-500.0,0.00027996,2]
[356418721,1742429471067,-942.79,0.00027996,2]
[356418722,1742429471077,-1896.17,0.00027996,2]
[356418723,1742429471087,-500.0,0.00027996,2]
[356418724,1742429471097,-687.49,0.00027996,2]
[356418725,1742429471109,-500.0,0.00027996,2]
[356418726,1742429471121,-500.0,0.00027996,2]
[356418727,1742429471130,-679.13,0.00027996,2]
[356418728,1742429471139,-845.54,0.00027996,2]
[356418729,1742429471150,-558.11,0.00027996,2]
[356418730,1742429471159,-1080.65,0.00027996,2]
[356418731,1742429471173,-500.0,0.00027996,2]
[356418732,1742429471182,-588.13,0.00027996,2]
[356418733,1742429471192,-500.0,0.00027996,2]
[356418734,1742429471202,-500.0,0.00027996,2]
[356418735,1742429471212,-753.55,0.00027996,2]
[356418736,1742429471222,-500.0,0.00027996,2]
[356418737,1742429471233,-500.0,0.00027996,2]
[356418738,1742429471245,-500.0,0.00027996,2]
[356418739,1742429471254,-324.82672654,0.00027996,2]
[356418740,1742429471273,-570.95,0.00027996,2]
[356418741,1742429471290,-780.8,0.00027996,2]
[356418742,1742429471299,-500.0,0.00027996,2]
[356418743,1742429471309,-500.0,0.00027996,2]
[356418744,1742429471319,-520.77,0.00027996,2]
[356418745,1742429471328,-1924.39,0.00027996,2]
[356418746,1742429471338,-500.0,0.00027996,2]
[356418747,1742429471348,-500.0,0.00027996,2]
[356418748,1742429471358,-500.0,0.00027996,2]
[356418749,1742429471369,-500.0,0.00027996,2]
[356418750,1742429471379,-561.68,0.00027996,2]
[356418751,1742429471388,-500.0,0.00027996,2]
[356418752,1742429471398,-716.58,0.00027996,2]
[356418753,1742429471407,-500.0,0.00027996,2]
[356418754,1742429471416,-500.0,0.00027996,2]
[356418755,1742429471425,-1182.16,0.00027996,2]
[356418756,1742429471434,-500.0,0.00027996,2]
[356418757,1742429471444,-1105.37,0.00027996,2]
[356418758,1742429471453,-1515.07,0.00027996,2]
[356418759,1742429471463,-500.0,0.00027996,2]
[356418760,1742429471472,-719.97,0.00027996,2]
[356418761,1742429471481,-624.32,0.00027996,2]
[356418762,1742429471491,-634.28,0.00027996,2]
[356418763,1742429471499,-500.0,0.00027996,2]
[356418764,1742429471509,-500.0,0.00027996,2]
[356418765,1742429471518,-829.65,0.00027996,2]
[356418766,1742429471527,-1500.0,0.00027996,2]
[356418767,1742429471536,-1270.74,0.00027996,2]
[356418768,1742429471545,-1370.61,0.00027996,2]
[356418769,1742429471554,-822.95,0.00027996,2]
[356418770,1742429471563,-1247.21,0.00027996,2]
[356418771,1742429471573,-500.0,0.00027996,2]
[356418772,1742429471583,-500.0,0.00027996,2]
[356418773,1742429471592,-500.0,0.00027996,2]
[356418774,1742429471602,-500.0,0.00027996,2]
[356418775,1742429471612,-500.0,0.00027996,2]
[356418776,1742429471623,-1262.48,0.00027996,2]
[356418777,1742429471632,-764.32,0.00027996,2]
[356418778,1742429471643,-500.0,0.00027996,2]
[356418779,1742429471653,-588.29,0.00027996,2]
[356418780,1742429471663,-543.3,0.00027996,2]
[356418781,1742429471673,-500.0,0.00027996,2]
[356418782,1742429471683,-500.0,0.00027996,2]
[356418783,1742429471692,-500.0,0.00027996,2]
[356418784,1742429471702,-500.0,0.00027996,2]
[356418785,1742429471712,-524.64,0.00027996,2]
[356418786,1742429471722,-500.0,0.00027996,2]
[356418787,1742429471732,-1556.19,0.00027996,2]
[356418788,1742429471741,-864.56,0.00027996,2]
[356418789,1742429471752,-616.22,0.00027996,2]
[356418790,1742429471762,-500.0,0.00027996,2]
[356418791,1742429471772,-2232.13,0.00027996,2]
[356418792,1742429471782,-500.0,0.00027996,2]
[356418793,1742429471792,-500.0,0.00027996,2]
[356418794,1742429471802,-500.0,0.00027996,2]
[356418795,1742429471811,-576.66,0.00027996,2]
[356418796,1742429471822,-500.0,0.00027996,2]
[356418797,1742429471832,-1995.64,0.00027996,2]
[356418798,1742429471842,-500.0,0.00027996,2]
[356418799,1742429471852,-500.0,0.00027996,2]
[356418800,1742429471862,-500.0,0.00027996,2]
[356418801,1742429471873,-636.25,0.00027996,2]
[356418802,1742429471887,-500.0,0.00027996,2]
[356418803,1742429471898,-1121.54,0.00027996,2]
[356418804,1742429471908,-500.0,0.00027996,2]
[356418805,1742429471920,-1144.39,0.00027996,2]
[356418806,1742429471930,-1525.13,0.00027996,2]
[356418807,1742429471940,-1413.97,0.00027996,2]
[356418808,1742429471950,-500.0,0.00027996,2]
[356418809,1742429471960,-982.29,0.00027996,2]
[356418810,1742429471970,-500.0,0.00027996,2]
[356418811,1742429471979,-666.83,0.00027996,2]
[356418812,1742429471990,-1161.83,0.00027996,2]
[356418813,1742429472001,-500.0,0.00027996,120]
[356418814,1742429472048,-878.77,0.00027996,2]
[356418815,1742429472057,-1146.98,0.00027996,2]
[356418816,1742429472067,-500.0,0.00027996,2]
[356418817,1742429472077,-562.89,0.00027996,2]
[356418818,1742429472089,-500.0,0.00027996,2]
[356418819,1742429472099,-1364.15,0.00027996,2]
[356418820,1742429472110,-500.0,0.00027996,2]
[356418821,1742429472121,-500.0,0.00027996,2]
[356418822,1742429472132,-500.0,0.00027996,2]
[356418823,1742429472143,-709.92,0.00027996,2]
[356418824,1742429472153,-934.56,0.00027996,2]
[356418825,1742429472163,-579.21,0.00027996,2]
[356418826,1742429472190,-500.0,0.00027996,2]
[356418827,1742429472200,-500.0,0.00027996,2]
[356418828,1742429472210,-500.0,0.00027996,2]
[356418829,1742429472220,-500.0,0.00027996,2]
[356418830,1742429472230,-500.0,0.00027996,2]
[356418831,1742429472240,-1000.0,0.00027996,2]
[356418832,1742429472250,-707.04,0.00027996,2]
[356418833,1742429472260,-685.56,0.00027996,2]
[356418834,1742429472271,-522.42,0.00027996,2]
[356418835,1742429472281,-500.0,0.00027996,2]
[356418836,1742429472291,-500.0,0.00027996,2]
[356418837,1742429472301,-500.0,0.00027996,2]
[356418838,1742429472311,-803.73,0.00027996,2]
[356418839,1742429472321,-500.0,0.00027996,2]
[356418840,1742429472332,-500.0,0.00027996,2]
[356418841,1742429472345,-1690.74,0.00027996,2]
[356418842,1742429472355,-500.0,0.00027996,2]
[356418843,1742429472366,-959.5,0.00027996,2]
[356418844,1742429472381,-500.0,0.00027996,2]
[356418845,1742429472391,-500.0,0.00027996,2]
[356418846,1742429472401,-500.0,0.00027996,2]
[356418847,1742429472411,-500.0,0.00027996,2]
[356418848,1742429472421,-1625.84,0.00027996,2]
[356418849,1742429472431,-493.40223043,0.00027996,2]
[356418850,1742429472441,-500.0,0.00027996,2]
[356418851,1742429472451,-500.0,0.00027996,2]
[356418852,1742429472461,-868.33,0.00027996,2]
[356418853,1742429472471,-500.0,0.00027996,2]
[356418854,1742429472481,-500.0,0.00027996,2]
[356418855,1742429472492,-843.21,0.00027996,2]
[356418856,1742429472502,-1264.18,0.00027996,2]
[356418857,1742429472513,-500.0,0.00027996,2]
[356418858,1742429472523,-500.0,0.00027996,2]
[356418859,1742429472532,-500.0,0.00027996,2]
[356418860,1742429472542,-500.0,0.00027996,2]
[356418861,1742429472553,-1314.43,0.00027996,2]
[356418862,1742429472563,-500.0,0.00027996,2]
[356418863,1742429472574,-1060.63,0.00027996,2]
[356418864,1742429472585,-506.18163497,0.00027996,2]
[356418865,1742429472595,-813.45,0.00027996,2]
[356418866,1742429472605,-500.0,0.00027996,2]
[356418867,1742429472616,-500.0,0.00027996,2]
[356418868,1742429472634,-500.0,0.00027996,2]
[356418869,1742429472647,-500.0,0.00027996,2]
[356418870,1742429472658,-516.2980266,0.00027996,2]
[356418871,1742429472669,-500.0,0.00027996,2]
[356418872,1742429472679,-500.0,0.00027996,2]
[356418873,1742429472690,-500.0,0.00027996,2]
[356418874,1742429472700,-500.0,0.00027996,2]
[356418875,1742429472712,-372.42668107,0.00027996,2]
[356418876,1742429472722,-500.0,0.00027996,2]
[356418877,1742429472733,-500.0,0.00027996,2]
[356418878,1742429472744,-561.62,0.00027996,2]
[356418879,1742429472755,-836.52,0.00027996,2]
[356418880,1742429472765,-500.0,0.00027996,2]
[356418881,1742429472775,-500.0,0.00027996,2]
[356418882,1742429472786,-500.0,0.00027996,2]
[356418883,1742429472796,-515.78041815,0.00027996,2]
[356418884,1742429472806,-500.0,0.00027996,2]
[356418885,1742429472816,-1287.31,0.00027996,2]
[356418886,1742429472826,-500.0,0.00027996,2]
[356418887,1742429472836,-500.0,0.00027996,2]
[356418888,1742429472847,-768.63,0.00027996,2]
[356418889,1742429472857,-500.0,0.00027996,2]
[356418890,1742429472868,-889.47,0.00027996,2]
[356418891,1742429472883,-500.0,0.00027996,2]
[356418892,1742429472893,-500.0,0.00027999,2]
[356418893,1742429472903,-500.0,0.00027999,2]
[356418894,1742429472913,-239.0,0.00028,2]
[356418895,1742429472925,-54144.99705845,0.00028,2]
[356418896,1742429473300,-600.0,0.000275,10]
[356418897,1742429473311,-500.0,0.00027819,2]
[356418898,1742429473321,-39946.34164077,0.00028,2]
[356418899,1742429473333,-111041.66130078,0.00028,2]
[356418900,1742429473343,-5100.0,0.00028,10]
[356418901,1742429473353,-614.763,0.00028,29]
[356418902,1742429473364,-150.0,0.00028,2]
[356418903,1742429473378,-254.67262431,0.00028019,2]
[356418904,1742429473388,-500.0,0.00028019,2]
[356418905,1742429473399,-500.0,0.00028019,2]
[356418906,1742429473409,-290.7826221,0.00028019,2]
[356418907,1742429473419,-1096.46,0.00028019,2]
[356418908,1742429473430,-665.26,0.00028019,2]
[356418909,1742429473440,-1303.63,0.00028019,2]
[356418910,1742429473451,-1027.65,0.00028019,2]
[356418911,1742429473461,-500.0,0.00028019,2]
[356418912,1742429473472,-588.93,0.00028019,2]
[356418913,1742429473483,-500.0,0.00028019,2]
[356418914,1742429473494,-500.0,0.00028019,2]
[356418915,1742429473504,-1021.64,0.00028019,2]
[356418916,1742429473515,-668.28,0.00028019,2]
[356418917,1742429473787,-1003.55,0.00028019,2]
[356418918,1742429473807,-500.0,0.00028019,2]
[356418919,1742429473817,-592.74,0.00028019,2]
[356418920,1742429473827,-919.0,0.00028019,2]
[356418921,1742429473838,-932.67,0.00028019,2]
[356418922,1742429473848,-934.25,0.00028019,2]
[356418923,1742429473859,-500.0,0.00028019,2]
[356418924,1742429473869,-500.0,0.00028019,2]
[356418925,1742429473882,-2314.69,0.00028019,2]
[356418926,1742429473893,-644.44,0.00028019,2]
[356418927,1742429473904,-858.81,0.00028019,2]
[356418928,1742429473916,-919.72,0.00028019,2]
[356418929,1742429473931,-755.1,0.00028019,2]
[356418930,1742429473943,-1110.46,0.00028019,2]
[356418931,1742429473955,-500.0,0.00028019,2]
[356418932,1742429473965,-668.07,0.00028019,2]
[356418933,1742429473976,-500.0,0.00028019,2]
[356418934,1742429473986,-500.0,0.00028019,2]
[356418935,1742429473996,-500.0,0.00028019,2]
[356418936,1742429474006,-999.48,0.00028019,2]
[356418937,1742429474017,-500.0,0.00028019,2]
[356418938,1742429474028,-500.0,0.00028019,2]
[356418939,1742429474038,-158.65368329,0.00028019,2]
[356418940,1742429474050,-591.92,0.00028024,2]
[356418941,1742429474060,-500.0,0.00028029,2]
[356418942,1742429474071,-500.0,0.00028029,2]
[356418943,1742429474082,-807.93,0.0002803,2]
[356418944,1742429474093,-1038.77,0.0002803,2]
[356418945,1742429474103,-510.35,0.0002803,2]
[356418946,1742429474115,-500.0,0.0002803,2]
[356418947,1742429474127,-548.12836694,0.0002803,2]
[356418948,1742429474138,-500.0,0.0002803,2]
[356418949,1742429474148,-500.0,0.0002803,2]
[356418950,1742429474159,-666.84,0.0002803,2]
[356418951,1742429474170,-607.36,0.0002803,2]
[356418952,1742429474181,-500.0,0.0002803,2]
[356418953,1742429474191,-852.8,0.0002803,2]
[356418954,1742429474201,-500.0,0.0002803,2]
[356418955,1742429474211,-500.0,0.0002803,2]
[356418956,1742429474222,-500.0,0.0002803,2]
[356418957,1742429474232,-500.0,0.0002803,2]
[356418958,1742429474242,-500.0,0.0002803,2]
[356418959,1742429474252,-1322.23,0.0002803,2]
[356418960,1742429474262,-500.0,0.0002803,2]
[356418961,1742429474271,-536.36110768,0.0002803,2]
[356418962,1742429474281,-966.6,0.00028035,15]
[356418963,1742429474292,-500.0,0.00028036,2]
[356418964,1742429474302,-500.0,0.00028037,2]
[356418965,1742429474312,-500.0,0.00028037,2]
[356418966,1742429474322,-500.0,0.00028037,2]
[356418967,1742429474333,-500.0,0.00028037,2]
[356418968,1742429474343,-514.77101198,0.00028037,2]
[356418969,1742429474355,-1067.0,0.00028037,2]
[356418970,1742429474366,-500.0,0.00028037,2]
[356418971,1742429474378,-727.32,0.00028037,2]
[356418972,1742429474388,-500.0,0.00028037,2]